Cogmind - Beta 16.1 @@@ ROGUE MODE // 2026.04.11 @ 20:40:52 Player: Maelyn Result: Self-destructed Performance ------------- Evolutions (1) 500 Regions Visited (3) 600 Robots Destroyed (52) 260 Value Destroyed (1032) 1032 Prototype IDs (2) 40 Alien Tech Used (0) 0 Bonus (0) 0 TOTAL SCORE: 2432 Bonus ------- None Cogmind --------- Core Integrity 20/400 Matter 300/300 Energy 94/100 System Corruption 2% Temperature Cool (0) Movement Treading (160) Location -9/Materials Parts ------- > --- POWER (1) -------- (None) > --- PROPULSION (3) --- Light Treads Light Treads > --- UTILITY (3) ------ Large Storage Unit Advanced Weight Redist. System Utility Shielding > --- WEAPON (2) ------- Beam Rifle > --- INVENTORY (15) --- Reinforced Ion Engine Aluminum Leg Heat Sink Medium Storage Unit Large Storage Unit Medium Battery (150) Light Armor Plating Hacking Suite Heavy EM Pulse Gun Improved EM Shotgun Improved EM Shotgun Particle Gun Grenade Launcher Peak State ------------ > --- POWER ------------ Ion Engine > --- PROPULSION ------- Aluminum Leg Carbon-fiber Leg > --- UTILITY ---------- Improved Heat Sink Large Storage Unit Seismic Detector > --- WEAPON ----------- Beam Rifle Beam Rifle > --- INVENTORY -------- Light Ion Engine Aluminum Leg Medium Storage Unit Medium Battery Advanced Weight Redist. System Utility Shielding Hacking Suite Improved EM Shotgun Improved EM Shotgun Beam Cannon Assault Rifle Grenade Launcher [Rating: 16] Favorites ----------- Power Ion Engine Engine Ion Engine Power Core Light Nuclear Core Propulsion Light Treads Treads Light Treads Leg Aluminum Leg Utility Large Storage Unit Device Seismic Detector Storage Large Storage Unit Protection Utility Shielding Weapon Beam Cannon Energy Gun Medium Laser Energy Cannon Beam Cannon Build | -11 -10 -10 -9 ------- Run | Yrd Mat Min Mat Slots Evolved 2 | . . . 2 Power . | . . . . Propulsion 1 | . . . 1 Utility 1 | . . . 1 Weapon . | . . . . Parts Attached 39 | 7 11 6 15 Power 6 | 1 3 1 1 Engine 5 | 1 3 . 1 Core 1 | . . 1 . Reactor . | . . . . Propulsion 12 | 2 3 3 4 Treads 9 | 2 3 . 4 Leg 3 | . . 3 . Wheel . | . . . . Hover . | . . . . Flight . | . . . . Utility 9 | 2 2 . 5 Device 3 | 1 . . 2 Storage 4 | 1 2 . 1 Processor . | . . . . Hackware . | . . . . Protection 2 | . . . 2 Artifact . | . . . . Weapon 12 | 2 3 2 5 Energy Gun 9 | 2 1 2 4 Energy Cannon 3 | . 2 . 1 Ballistic Gun . | . . . . Ballistic Cannon . | . . . . Launcher . | . . . . Special Weapon . | . . . . Impact Weapon . | . . . . Slashing Weapon . | . . . . Piercing Weapon . | . . . . Special Melee Weapon . | . . . . Unidentified Prototypes 2 | . 1 . 1 Parts Lost 16 | . 2 1 13 Power 3 | . 1 . 2 Propulsion 5 | . . 1 4 Utility 2 | . . . 2 Weapon 6 | . 1 . 5 Highest Loss Streak 8 | . 2 1 8 To Critical Strikes . | . . . . Average Backups 11 | 3 10 14 12 Power 1 | . . 1 1 Propulsion 2 | 1 2 1 1 Utility 3 | . 1 5 5 Weapon 5 | 1 5 5 4 Tool/Special . | . . . . Unused Backups 6 | . . . 6 Power . | . . . . Propulsion . | . . . . Utility 2 | . . . 2 Weapon 4 | . . . 4 Tool/Special . | . . . . Average Slot Usage (%) 86 | . 92 92 71 Engine 10 | . 13 4 10 Core 1 | . . 8 . Treads 19 | . 24 15 11 Leg 2 | . . 8 3 Device 11 | . 13 14 7 Storage 13 | . 14 14 11 Protection 2 | . . . 9 Energy Gun 14 | . 15 3 17 Energy Cannon 9 | . 9 21 2 Peak Build Rating 16 | 7 10 13 16 Average Rating 9 | 4 7 10 12 On Entrance 7 | . 7 9 13 Avg Prop Armor Cover (%) . | . . . . Naked Turns . | . . . . Heaviest Build 39 | 15 32 32 39 Greatest Support 49 | 40 40 40 49 Greatest Overweight (x) 11 | 3 10 1 11 Average Overweight (x) . | . . . . Largest Inventory Capacity 15 | 8 15 15 15 Average Capacity 14 | 7 13 15 15 Most Carried 15 | 6 15 15 15 Average Carried 11 | 3 10 14 12 Final Capacity 15 | 8 15 15 15 Final Carried 13 | 4 13 13 13 Class Distribution -------------------- 100% | Mutant Dominant Class ---------------- Mutant | -10/Materials Mutant | -10/Mines Mutant | -9/Materials Resources | -11 -10 -10 -9 ----------- Run | Yrd Mat Min Mat Matter Collected 877 | 189 299 110 279 Remotely . | . . . . Salvage Created 1772 | 23 575 125 1049 Parts 81 | 1 32 8 40 Haulers Intercepted 3 | . 2 . 1 Recyclers Shooed 1 | . 1 . . Parts Field Recycled . | . . . . Retrieved Matter . | . . . . Parts Self-Destructed . | . . . . Prevented . | . . . . Parts Restored . | . . . . Kills | -11 -10 -10 -9 ------- Run | Yrd Mat Min Mat Combat Hostiles Destroyed 34 | . 14 5 15 Guns 22 | . 11 . 11 Cannons 12 | . 3 5 4 Classes Destroyed 10 | 1 7 . 2 Worker 3 | . 1 . 2 Tunneler 1 | 1 . . . Hauler 3 | . 2 . 1 Recycler 3 | . 1 . 2 Operator 1 | . 1 . . Watcher 7 | . 3 . 4 Swarmer 15 | . 9 3 3 Grunt 13 | . 5 2 6 Brawler 2 | . . . 2 Sentry 4 | . . . 4 Best Kill Streak 7 | 1 5 2 7 Combat Bots Only 7 | . 5 2 7 Max Kills in Single Turn 1 | 1 1 1 1 Gunslinging . | . . . . Exploded . | . . . . Melee . | . . . . Uniques/NPCs Destroyed . | . . . . Combat | -11 -10 -10 -9 -------- Run | Yrd Mat Min Mat Hostile Shots Fired 246 | . 81 29 136 Missed 56 | . 25 9 22 Hits 190 | . 56 20 114 Melee 1 | . . . 1 Projectile 189 | . 56 20 113 Critical Strikes 1 | . . . 1 Damage Taken 2423 | . 528 262 1633 Core 556 | . 83 93 380 Absorbed by Shields . | . . . . Redirected to Shielding 9 | . . . 9 Core Remaining (%) 64 | 100 . 29 . Volleys Fired 175 | 2 68 14 91 Largest 2 | 2 2 2 2 Hottest 124 | 100 120 120 124 Shots Fired 285 | 4 116 29 136 Gun 214 | 4 102 . 108 Cannon 71 | . 14 29 28 Launcher . | . . . . Special . | . . . . Kinetic . | . . . . Thermal 270 | 4 116 29 121 Explosive . | . . . . Electromagnetic 15 | . . . 15 Robot Hit Streak 11 | 3 11 3 9 Robot Miss Streak 5 | . 5 2 3 Penetration Max . | . . . . Secondary Targets 1 | . 1 . . Max Gunslinging Chain 1 | . 1 . . Shots Hit Robots 190 | 3 72 18 97 Core Hits 73 | 1 33 7 32 Critical Kills . | . . . . Critical Parts Destroyed . | . . . . Critical Strikes 7 | . 5 . 2 Burn 7 | . 5 . 2 Melee Attacks . | . . . . Impact . | . . . . Slashing . | . . . . Piercing . | . . . . Sneak Attacks . | . . . . Combat Hostiles . | . . . . Follow-up Attacks . | . . . . Damage Inflicted 2925 | 36 952 317 1620 Guns 1963 | 36 802 . 1125 Cannons 928 | . 121 314 493 Explosions . | . . . . Melee . | . . . . Ramming 34 | . 29 3 2 Kinetic . | . . . . Thermal 2643 | 36 923 314 1370 Explosive . | . . . . Electromagnetic 248 | . . . 248 Impact . | . . . . Slashing . | . . . . Piercing . | . . . . Highest Corruption 4 | . 4 4 2 Average Corruption 3 | . 3 4 2 Corruption Purged . | . . . . Corruption Blocked . | . . . . Effects 31 | . 21 10 . Message Errors 7 | . 5 2 . Matter Fused 8 | . 6 2 . Heat Flow Errors 2 | . 1 1 . Energy Discharges 6 | . 4 2 . Parts Rejected 1 | . 1 . . Data Loss (minor) 1 | . . 1 . Data Loss (major) 2 | . 1 1 . Misfires 4 | . 3 1 . Overload Shots . | . . . . Overflow Damage 4 | . 4 . . Projectiles 4 | . 4 . . Explosions . | . . . . Melee . | . . . . Knockbacks . | . . . . Impact . | . . . . Kinetic . | . . . . Secondary . | . . . . Self-Inflicted Damage . | . . . . Shots . | . . . . Rammed 9 | . 8 . 1 Targets Rammed 11 | . 9 1 1 Kicked 1 | . . 1 . Crushed 1 | . 1 . . Highest Temperature 586 | 78 288 586 560 Average Temperature 141 | 39 104 205 161 Received Heat Transfer 807 | . 147 81 579 Effects 30 | . 3 13 14 Shutdowns 5 | . . 4 1 Energy Bleed 1 | . . . 1 Interference 11 | . 3 4 4 Matter Decay 2 | . . . 2 Short Circuit 1 | . . . 1 Damage (minor) 1 | . . 1 . Damage (major) 7 | . . 3 4 Damage (core) 2 | . . 1 1 Siege Activations . | . . . . Martial Activations . | . . . . Shielding Activations . | . . . . Robots Disrupted . | . . . . Combat Hostiles . | . . . . Robots Corrupted . | . . . . Combat Hostiles . | . . . . Parts Fried . | . . . . Impact Corruptions . | . . . . Robots Melted . | . . . . Combat Hostiles . | . . . . Parts Melted 16 | 1 7 2 6 Heat Transferred 7104 | 111 2997 666 3330 Parts Sabotaged . | . . . . Parts Stolen . | . . . . Parts Stripped . | . . . . Power Chain Reactions . | . . . . Alert | -11 -10 -10 -9 ------- Run | Yrd Mat Min Mat Maximum Alert Level . | . . . . Low Security (%) 100 | 100 100 100 100 Level 1 . | . . . . Level 2 . | . . . . Level 3 . | . . . . Level 4 . | . . . . Level 5 . | . . . . High Security . | . . . . Max Security . | . . . . Peak Influence 131 | 5 124 53 131 Initial 13 | . . 13 . Average 27 | . 31 13 31 Influence Increases 1037 | 5 425 135 472 Destroy 0b10 Robot/C 680 | . 280 100 300 Destroy 0b10 Robot/NC 90 | 5 40 . 45 Destroy Leader 170 | . 60 20 90 Successful Hack 5 | . . . 5 Destroy Structure 2 | . . . 2 Lose Combat Pursuer 90 | . 45 15 30 Influence Decreases 1005 | 5 391 169 440 Entered New Map 21 | . . 21 . Time Decay 834 | 5 371 148 310 Lost Part 150 | . 20 . 130 Squads Dispatched 2 | . 1 . 1 Investigation 1 | . . . 1 Extermination . | . . . . Reinforcement 1 | . 1 . . Assault . | . . . . Garrison . | . . . . Intercept . | . . . . Searches Triggered . | . . . . Construction Impeded . | . . . . Haulers Reinforced . | . . . . Active Scanning Responses . | . . . . Cargo Convoy Interrupts . | . . . . Stealth | -11 -10 -10 -9 --------- Run | Yrd Mat Min Mat Distress Signals 3 | . 1 . 2 Communications Jammed . | . . . . Distress Signals . | . . . . Times Spotted 60 | . 24 6 30 Peak Tracking Total 10 | . 5 3 10 Tactical Retreats 4 | . 2 1 1 Traps | -11 -10 -10 -9 ------- Run | Yrd Mat Min Mat Traps Triggered 10 | . 7 2 1 Indirectly . | . . . . Trap Hack Attempts . | . . . . Triggered . | . . . . Disarmed . | . . . . Reprogrammed . | . . . . Reused . | . . . . Traps Extracted . | . . . . Installed . | . . . . Triggered . | . . . . Machines | -11 -10 -10 -9 ---------- Run | Yrd Mat Min Mat Machines Disabled . | . . . . Max in Single Turn . | . . . . Machines Repaired . | . . . . Machines Dismantled . | . . . . Machines Sabotaged . | . . . . Overloaded Fab Kills . | . . . . Hacking | -11 -10 -10 -9 --------- Run | Yrd Mat Min Mat Machines Accessed 4 | . 2 1 1 Terminals 1 | . . . 1 Fabricators . | . . . . Repair Stations . | . . . . Recycling Units 2 | . 2 . . Scanalyzers . | . . . . Garrison Access . | . . . . Total Hacks 7 | . 3 1 3 Successful 5 | . 3 1 1 Failed 2 | . . . 2 Catastrophic 1 | . . . 1 Database Lockouts . | . . . . Manual 3 | . . . 3 Terminals 3 | . . . 3 Fabricators . | . . . . Repair Stations . | . . . . Recycling Units 3 | . 3 . . Scanalyzers . | . . . . Garrison Access . | . . . . Terminal Hacks 1 | . . 1 . Open Door 1 | . . 1 . Fabricator Hacks . | . . . . Repair Station Hacks . | . . . . Recycling Unit Hacks 3 | . 3 . . Report Inventory 3 | . 3 . . Scanalyzer . | . . . . Garrison Access Hacks . | . . . . Unauthorized Hacks 1 | . . . 1 Terminals 1 | . . . 1 Botnet 1 | . . . 1 Fabricators . | . . . . Repair Stations . | . . . . Recycling Units . | . . . . Scanalyzers . | . . . . Garrison Access . | . . . . Data Cores Recovered . | . . . . Used . | . . . . Hacking Detections 2 | . 1 . 1 Full Trace Events . | . . . . Feedback Events . | . . . . Feedback Blocked . | . . . . Robot Schematics Acquired . | . . . . Robots Built . | . . . . Authchips . | . . . . Time . | . . . . Total Robot Build Rating . | . . . . Part Schematics Acquired . | . . . . Parts Built . | . . . . Authchips . | . . . . Time . | . . . . Total Part Build Rating . | . . . . Part Studies Acquired . | . . . . Parts Repaired . | . . . . Time . | . . . . Parts Recycled . | . . . . Recycled Matter . | . . . . Retrieved Matter . | . . . . Retrieved Components . | . . . . Parts Scanalyzed . | . . . . Part Schematics Acquired . | . . . . Parts Damaged . | . . . . Bothacking | -11 -10 -10 -9 ------------ Run | Yrd Mat Min Mat Used RIF Installer . | . . . . Robots Hacked . | . . . . Non-combat . | . . . . Combat . | . . . . Robot Hacks Applied . | . . . . Relay Couplers Released . | . . . . Fabnet Peak Effective % . | . . . . Robots Rewired . | . . . . Allies Hacked . | . . . . Hacks Repelled . | . . . . Allies | -11 -10 -10 -9 -------- Run | Yrd Mat Min Mat Total Allies . | . . . . Largest Group . | . . . . Highest-Rated Group . | . . . . Highest-Rated Ally . | . . . . Total Orders . | . . . . Ally Attacks . | . . . . Total Damage . | . . . . Kills . | . . . . Allies Corrupted . | . . . . Allies Melted . | . . . . Intel | -11 -10 -10 -9 ------- Run | Yrd Mat Min Mat Active Infowar (turns) 1840 | 38 1157 540 105 Seismic 1840 | 38 1157 540 105 Robot Analysis Total . | . . . . Derelict Logs Recovered 1 | . . 1 . Drone Launches . | . . . . Drone Recoveries . | . . . . Exploration | -11 -10 -10 -9 ------------- Run | Yrd Mat Min Mat Turns Passed 3195 | 119 1644 558 874 Spaces Moved 1389 | 65 794 266 264 Core 22 | 16 1 . 5 Treads 1249 | 49 793 175 232 Legs 118 | . . 91 27 Wheels . | . . . . Hover . | . . . . Flight . | . . . . Fastest Speed 50 | 50 160 120 160 Average Speed 183 | 150 172 186 219 Slowest Speed 600 | 200 550 240 600 Overloaded Moves . | . . . . Propulsion Burnouts . | . . . . Robots Hopped . | . . . . Potential Cave-ins . | . . . . Cave-ins Triggered . | . . . . Exploration Rate (%) 46 | 4 95 54 32 Regions Visited 3 Branch Regions 1 Pre-discovered Areas 1 | . . 1 . Known Exits Taken . | . . . . Unknown Exits Taken 3 | 1 1 1 . Scrap Searched 1 | . . 1 . Spaces Dug . | . . . . Terrain Destroyed . | . . . . Melee . | . . . . Projectile . | . . . . AOE . | . . . . Terrain Rammed . | . . . . Walls Destroyed . | . . . . Machines Disabled . | . . . . Actions | -11 -10 -10 -9 --------- Run | Yrd Mat Min Mat Total 1730 | 81 936 298 415 Wait 64 | . 25 9 30 Move 1386 | 64 793 265 264 Hop . | . . . . Pick Up 27 | 8 10 2 7 Fast Attach 23 | 3 14 . 6 Attach 17 | 4 3 4 6 Detach 1 | . 1 . . Swap 19 | . 8 3 8 Drop 7 | . 5 . 2 Fire 175 | 2 68 14 91 Melee . | . . . . Ram . | . . . . Kick 1 | . . 1 . Crush 10 | . 9 . 1 Escape Stasis . | . . . . Rewire . | . . . . Trap . | . . . . Miscellaneous . | . . . . Route ------- -11/Scrapyard -10/Materials (discovered 4 exits: *Mat x3 / *Min) -10/Mines (discovered 2 exits: *Mat / [*Sub]) -9/Materials History --------- Turn | Location | Event 20 | -11/Scrapyard | Discovered new exit (range 16) 120 | -11/Scrapyard | Entered Materials 314 | -10/Materials | Build established: Mutant 410 | -10/Materials | Discovered new exit (range 11) 646 | -10/Materials | Discovered new exit (range 14) 1019 | -10/Materials | Discovered new exit (range 4) 1324 | -10/Materials | Discovered new exit (range 5) 1764 | -10/Materials | Entered Mines 1788 | -10/Mines | Core integrity fell below 50% 1875 | -10/Mines | Discovered new exit (range 9) 1953 | -10/Mines | Learned location of Recycling (-9) 1973 | -10/Mines | Discovered new exit (range 3) 2132 | -10/Mines | Met a Derelict who couldn't figure out how to use a Trap Extractor 2322 | -10/Mines | Entered Materials 2322 | -9/Materials | Evolved 2 slots: Propulsion x1, Utility x1 2458 | -9/Materials | Destroyed 7 combat bots 2485 | -9/Materials | Lost 8 parts (1p2n2u3w) 3094 | -9/Materials | Core integrity fell below 50% 3130 | -9/Materials | Core integrity fell below 20% 3195 | -9/Materials | Lost 5 parts (1p2n2w) 3196 | -9/Materials | Self-destructed Last Messages --------------- 03144_ Lgt. Ion Engine destroyed. 03145_ Y-45 Defender destroyed. 03149_ Acquired 22 matter. 03163_ Lgt. Treads destroyed. 03163_ System corrupted by crushing effect (+2). 03164_ B-36 Bruiser destroyed. 03164_ Lgt. Treads destroyed. 03170_ Acquired Lgt. Treads. 03174_ R-06 Scavenger collects Hammer. 03179_ R-06 Scavenger collects Lgt. Armor Plating. 03185_ R-06 Scavenger inserts Sml. Matter Pod into recycling unit. 03186_ Recycling unit begins recycling process. 03188_ R-06 Scavenger inserts Heat Sink into recycling unit. 03189_ Acquired 20 matter. 03190_ M-13 Machinist repairs R-06 Scavenger. 03191_ G-34 Mercenary heat damages Aluminum Leg. 03191_ R-06 Scavenger inserts Imp. Ion Engine into recycling unit. 03192_ Recycling unit begins recycling process. 03192_ Slammed into G-34 Mercenary. 03194_ R-06 Scavenger inserts Lgt. Armor Plating into recycling unit. Map ----- +----------------------------------------------------+ | | | | | | | | | | | ?????????????????????????????????????????????????? | | ?????????????????????????????????????????????????? | | ?????????????????????????????????????????????????? | | ?????????????????????????????????????????????????? | | ?????????????????????????????????????????????????? | | ??????????????????####????????#######????????????? | | ?????????????????## ####### #????????????? | | ???????????????? #????????????? | | ???????????????? T #????????????? | | ???????????????? #????????????? | | ??????????????????# ####### #????????????? | | ????????????????????????######## ########??????? | | ????????????????????????# #?# # #??????? | | ????????????????????????# "" #?# # #??????? | | ????????????????????????# "Y #?# %+% "" #??????? | | ????????????????????????# ""r### # """ #??????? | | ????????????????????????# + # """ #??????? | | ????????????????????????# ### # #??????? | | ????????????????????????# g %#?# ########??????? | | ????????????????????????# #?# #?????????????? | | ????????????????????????#@% #?# #?????????????? | | ????????????????????????##m##### ############### | | ???????????????????? | | ???????????????????? | | ???????????????????? | | ???????????????????? ######################### | | ???????????????????? ???????????????????????# | | ???????????????????# ???????????????????????# | | ???????????????????+ ???????????????????????# | | ???????????????????# ????????????????????????# | | ???????????????????# ????????????????????????#! | | ???????????????????# ????????????????????????# | | ???????????????????? ?????????????????????????## | | ???????????????????? ??????????????????????##### | | ?????????????????????? ??????????????????????# ! | | ?????????????????????????????????????????????# ! | | ?????????????????????????????????????????????# | | ?????????????????????????????????????????????# | | ?????????????????????????????????????????????##### | | ?????????????????????????????????????????????????? | | ?????????????????????????????????????????????????? | | ?????????????????????????????????????????????????? | | ?????????????????????????????????????????????????? | | ?????????????????????????????????????????????????? | | ?????????????????????????????????????????????????? | +----------------------------------------------------+ Best States ------------- Heat Dissipation 42 Energy Generation 14 Energy Capacity 265 Matter Stores 300 Matter Capacity 300 Sight Range 16 Terrain Scan Density 10 Additional Mass Support 9 Armor Coverage 150 Utility Shielding 33 Evasion (%) 40 Recoil Reduction 2 Item Schematics ----------------- None Robot Schematics ------------------ None Fabricated ------------ Nothing Repaired ---------- Nothing Studied --------- None Alien Tech Used ----------------- None Achievements -------------- None Challenges ------------ None Game ------ Seed RecoilExplosiveKit Manual? 0 Play Time 00:30:44 Cumulative 40.4 hours Start 2026.04.11 @ 20:12:19 End 2026.04.11 @ 20:40:52 Sessions 2 Manual Loads 0 Difficulty Rogue Special Mode None Game No. 99 Rogue 99 Adventurer 0 Explorer 0 Win Type - Total 0 Types 0/0/0/0/0/0/0/0/0/0 Lore% 14 Gallery% 25 Achievement% 17 Wizard Run 0 Options --------- Layout 0 ASCII 1 Keyboard 1 Movement Vi Keybinds 0 Fullscreen 2 Font 18/T_Terminus Map View 76x50 Zoom Use 0% Tactical HUD 1 Map Filters NONE Filters NONE Steam 1 RUN: a344a6fa-f0fc-4725-86db-7a2e13df0d59